Workbook

Sheet Титул
B1: Министерство науки и высшего образования Российской Федерации
B2: Федеральное государственное учреждение
B3: "Федеральный исследовательский центр Институт прикладной математики им. М.В. Келдыша
B4: Российской академии наук"
B5: (ИПМ им. М.В. Келдыша РАН)
B6: Аспирантура
B8: План одобрен Ученым советом ИПМ им. М.В. Келдыша РАН
B9: Протокол № 11/23 "26" октября 2023г.
B12: РАБОЧИЙ УЧЕБНЫЙ ПЛАН
B13: подготовки аспирантов
B15: по научной специальности | F15: 2.3.5 | G15: - Математическое и программное обеспечение вычислительных
B16: систем комплексов и компьютерных сетей
B17: Отдел | D17: Научно-образовательный отдел
B18: Виды деятельности выпускников: | D18: научно-исследовательская деятельность в области фундаментальной и прикладной математики, механики,
D19: естественных наук; преподавательская деятельность в области математики, механики, информатики.
B21: Форма обучения: очная
B22: Срок обучения: 3 года | I22: План разработан в соответствии с Приказом Минобрнауки РФ от 20.10.2021 N 951 "Об утверждении федеральных государственных требований к структуре программ подготовки научных и научнопедагогических кадров в аспирантуре (адъюнктуре), условиям их реализации, срокам освоения этих программ с учетом различных форм обучения, образовательных технологий и особенностей отдельных категорий аспирантов (адъюнктов)"

Sheet Календарный График
A2: 1. Календарный учебный график на 2025/26 уч. год
A3: Мес | B3: Сентябрь | F3: 29 - 5 | G3: Октябрь | J3: 27 - 2 | K3: Ноябрь | O3: Декабрь | S3: 29 - 4 | T3: Январь | W3: 26 - 1 | X3: Февраль | AA3: 23 - 1 | AB3: Март | AF3: 30 - 5 | AG3: Апрель | AJ3: 27 - 3 | AK3: Май | AO3: Июнь | AS3: 29 - 5 | AT3: Июль | AW3: 27 -2 | AX3: Август
B4: 1 - 7 | C4: 8 - 14 | D4: 15 - 21 | E4: 22 - 28 | G4: 6 - 12 | H4: 13 - 19 | I4: 20 - 26 | K4: 3 - 9 | L4: 10 - 16 | M4: 17 - 23 | N4: 24 - 30 | O4: 1 - 7 | P4: 8 - 14 | Q4: 15 - 21 | R4: 22 - 28 | T4: 5 - 11 | U4: 12 - 18 | V4: 19 - 25 | X4: 2 - 8 | Y4: 9 - 15 | Z4: 16 - 22 | AB4: 2 - 8 | AC4: 9 - 15 | AD4: 16 - 22 | AE4: 23 - 29 | AG4: 6 - 12 | AH4: 13 - 19 | AI4: 20 - 26 | AK4: 4 - 10 | AL4: 11 - 17 | AM4: 18 - 24 | AN4: 25 - 31 | AO4: 1 - 7 | AP4: 8 - 14 | AQ4: 15 - 21 | AR4: 22 - 28 | AT4: 6 - 12 | AU4: 13 - 19 | AV4: 20 - 26 | AX4: 3 - 9 | AY4: 10 - 16 | AZ4: 17 - 23 | BA4: 24 - 31
B5: 1 | C5: 2 | D5: 3 | E5: 4 | F5: 5 | G5: 6 | H5: 7 | I5: 8 | J5: 9 | K5: 10 | L5: 11 | M5: 12 | N5: 13 | O5: 14 | P5: 15 | Q5: 16 | R5: 17 | S5: 18 | T5: 19 | U5: 20 | V5: 21 | W5: 22 | X5: 23 | Y5: 24 | Z5: 25 | AA5: 26 | AB5: 27 | AC5: 28 | AD5: 29 | AE5: 30 | AF5: 31 | AG5: 32 | AH5: 33 | AI5: 34 | AJ5: 35 | AK5: 36 | AL5: 37 | AM5: 38 | AN5: 39 | AO5: 40 | AP5: 41 | AQ5: 42 | AR5: 43 | AS5: 44 | AT5: 45 | AU5: 46 | AV5: 47 | AW5: 48 | AX5: 49 | AY5: 50 | AZ5: 51 | BA5: 52
A6: I | B6: Н | C6: Н | D6: Н | E6: Н | Q6: па | R6: па | T6: К | U6: нир | V6: Н | W6: Н | AH6: кэ ан | AM6: па | AN6: па | AR6: кэ ф | AS6: нир | AT6: нир | AU6: К | AV6: К | AW6: К | AX6: К | AY6: К | AZ6: К | BA6: К
S10: К
A13: II | B13: Н | C13: Н | D13: Н | E13: Н | Q13: па | R13: па | T13: К | U13: нир | V13: кэ сп | W13: кэ сп | X13: Н | Y13: Н | AB13: п | AC13: п | AD13: п | AE13: п | AF13: п | AG13: п | AH13: п | AI13: п | AM13: па/ кэ сп | AN13: кэ сп | AS13: нир | AT13: нир | AU13: К | AV13: К | AW13: К | AX13: К | AY13: К | AZ13: К | BA13: К
S17: К
A20: III | B20: Н | C20: Н | D20: Н | E20: Н | T20: К | U20: нир | V20: кэ сп | W20: кэ сп | X20: Н | Y20: Н | Z20: Н | AA20: Н | AB20: Н | AC20: Н | AD20: Н | AE20: Н | AF20: Н | AG20: Н | AH20: Н | AI20: Н | AJ20: Н | AK20: Н | AL20: Н | AM20: кэ сп | AN20: кэ сп | AO20: ИА | AP20: ИА | AQ20: ИА | AR20: ИА | AS20: ИА | AT20: ИА | AU20: ИА | AV20: ИА | AW20: К | AX20: К | AY20: К | AZ20: К | BA20: К
S24: К
V27: 1 | W27: 2 | X27: 3 | Y27: 4 | Z27: 5 | AA27: 6 | AB27: 7 | AC27: 8 | AD27: 9 | AE27: 10 | AF27: 11 | AG27: 12 | AH27: 13 | AI27: 14 | AJ27: 15 | AK27: 16 | AL27: 17 | AM27: 18 | AN27: 19 | AO27: 20
A28: 2. Сводные данные
W29: Курс 1 | AC29: Курс 2 | AI29: Курс 3 | AO29: Итого
W30: сем. 1 | Y30: сем. 2 | AA30: Всего | AC30: сем. 3 | AE30: сем. 4 | AG30: Всего | AI30: сем. 5 | AK30: сем. 6 | AM30: Всего
B31: Образовательная подготовка (рассред.) в т.ч. практика | W31: 6 | Y31: 6 | AA31: =W31+Y31 -> 12 | AC31: 4 | AG31: =AC31+AE31 -> 4 | AI31: 2 | AK31: 0 | AM31: =AI31+AK31 -> 2 | AO31: =AM31+AG31+AA31 -> 18
A32: п | B32: Практика (рассред.) | AE32: 2 | AG32: =AC32+AE32 -> 2 | AO32: =AA32+AG32+AN32 -> 2
A33: Н | B33: Научные исследования | W33: 4 | Y33: 4 | AA33: =SUM(W33:Z33) -> 8 | AC33: 4 | AE33: 4 | AG33: =SUM(AC33:AF33) -> 8 | AI33: 4 | AK33: 19 | AM33: =SUM(AI33:AL33) -> 23 | AO33: =AM33+AG33+AA33 -> 39
B34: Научные исследования (рассред.) | W34: 7 | Y34: 13 | AA34: =SUM(W34:Z34) -> 20 | AC34: 9 | AE34: 17 | AG34: =SUM(AC34:AF34) -> 26 | AI34: 11 | AM34: =SUM(AI34:AL34) -> 11 | AO34: =AM34+AG34+AA34 -> 57
A35: па,кэ, нир | B35: Промежуточная аттестация по уч.дисциплинам зачет/экзамен, КЭ, нир | W35: 2 | Y35: 2 | AA35: =SUM(W35:Z35) -> 4 | AC35: 2 | AE35: 2 | AG35: =SUM(AC35:AF35) -> 4 | AI35: 2 | AK35: 1 | AM35: =SUM(AI35:AL35) -> 3 | AO35: =AM35+AG35+AA35 -> 11
A36: ИА | B36: Итоговая аттестация | AK36: 5 | AM36: =SUM(AI36:AL36) -> 5 | AO36: =AM36+AG36+AA36 -> 5
A37: К | B37: Каникулы | W37: 1 | Y37: 7 | AA37: =SUM(W37:Z37) -> 8 | AC37: 1 | AE37: 7 | AG37: =SUM(AC37:AF37) -> 8 | AI37: 1 | AK37: 7 | AM37: =SUM(AI37:AL37) -> 8 | AO37: =AM37+AG37+AA37 -> 24
W39: =SUM(W31:X38) -> 20 | Y39: =SUM(Y31:Z38) -> 32 | AA39: =SUM(AA31:AB38) -> 52 | AC39: =SUM(AC31:AD38) -> 20 | AE39: =SUM(AE32:AF37) -> 32 | AG39: =SUM(AC39:AE39) -> 52 | AI39: =SUM(AI31:AJ38) -> 20 | AK39: =SUM(AK31:AL37) -> 32 | AM39: =SUM(AI39:AL39) -> 52 | AO39: =SUM(AO31:AP38) -> 156

Sheet ПланСвод
A1: Сводный план подготовки аспирантов
B2: Наименование | C2: Формы контроля | G2: Всего часов | P2: Распределение ЗЕТ
G3: По ЗЕТ | H3: По плану | I3: в том числе | P3: Курс 1 | S3: Курс 2 | V3: Курс 3
C4: Экзамены | D4: Зачеты | E4: Зачеты с оценкой | F4: Рефераты | I4: Контакт. раб. (по учеб. зан.) | J4: из них | M4: СРС | N4: Контроль | O4: З.Е. факт. | P4: Итого | Q4: Сем. 1 | R4: Сем. 2 | S4: Итого | T4: Сем. 1 | U4: Сем. 2 | V4: Итого | W4: Сем. 1 | X4: Сем. 2
J5: Лек | K5: Пр | L5: Сем
A7: 1 | B7: Образовательный компонент | G7: =O7*36 -> 1080 | H7: =H8+H11+H16+H22 -> 1080 | I7: =I8+I11+I16 -> 166 | O7: =P7+S7+V7 -> 30 | P7: =Q7+R7 -> 18 | Q7: =Q8+Q11+Q16+Q22+Q22 -> 6 | R7: =R8+R11+R16+R22 -> 12 | S7: =T7+U7 -> 12 | T7: =T8+T11+T16 -> 6 | U7: =U8+U11+U16+U22 -> 6 | V7: =W7+X7 -> 0 | W7: =W8+W11+W16+W22 -> 0 | X7: =X8+X11+X16+X22 -> 0
A8: 1.1. | B8: Дисциплины (базовая часть) | G8: =O8*36 -> 324 | H8: =H9+H10 -> 324 | I8: =I9+I10 -> 36 | M8: =M9+M10 -> 216 | O8: =O9+O10 -> 9 | P8: =P9+P10 -> 9 | Q8: =Q9+Q10 -> 2 | R8: =R9+R10 -> 7
A9: 1.1.1 | B9: Иностранный язык (кандидатский экзамен) | C9: 1 | G9: =O9*36 -> 180 | H9: =I9+M9+N9 -> 180 | I9: 20 | J9: 2 | L9: 18 | M9: 124 | N9: 36 | O9: =P9+S9+V9 -> 5 | P9: =SUM(Q9:R9) -> 5 | Q9: 2 | R9: 3
A10: 1.1.2 | B10: История и философия науки (кандидатский экзамен) | C10: 2 | F10: + | G10: =O10*36 -> 144 | H10: =I10+M10+N10 -> 144 | I10: 16 | J10: 6 | L10: 10 | M10: 92 | N10: 36 | O10: =P10+S10+V10 -> 4 | P10: =SUM(Q10:R10) -> 4 | R10: 4
A11: 1.2 | B11: ДИСЦИПЛИНЫ (общие) | D11: 3 | E11: 1 | G11: =O11*36 -> 180 | H11: =I11+M11 -> 180 | I11: =SUM(I12:I15) -> 62 | J11: 16 | L11: 34 | M11: =SUM(M12:M15) -> 118 | O11: =SUM(O12:O15) -> 5 | P11: =SUM(Q11+R11) -> 3 | Q11: =SUM(Q12:Q15) -> 2 | R11: =SUM(R12:R15) -> 1 | S11: =T11+U11 -> 2 | T11: =SUM(T12:T15) -> 2 | U11: =SUM(U12:U15) -> 0 | V11: =W11+X11 -> 0 | W11: =SUM(W12:W15) -> 0
A12: 1.2.1 | B12: Методология научных исследований | D12: 1 | G12: 72 | H12: =I12+M12 -> 72 | I12: 14 | J12: 4 | L12: 10 | M12: 58 | O12: =P12+S12+V12 -> 2 | P12: =SUM(Q12+R12) -> 2 | Q12: 2 | S12: 0 | V12: 0
A13: 1.2.2 | B13: Методика написания и правила оформления научной работы | D13: 2 | G13: 36 | H13: =I13+M13 -> 36 | I13: 12 | J13: 4 | L13: 8 | M13: 24 | O13: 1 | P13: =SUM(Q13+R13) -> 1 | R13: 1 | S13: 0 | V13: 0
A14: 1.2.3 | B14: Психология и педагогика профессиональной деятельности | E14: 3 | G14: 36 | H14: =I14+M14 -> 36 | I14: 12 | J14: 4 | L14: 8 | M14: 24 | O14: 1 | P14: =SUM(Q14+R14) -> 0 | S14: 1 | T14: 1 | V14: 0
A15: 1.2.4 | B15: Искусственный интеллект в научных исследованиях. | D15: 3 | G15: 36 | H15: =I15+M15 -> 36 | I15: 24 | M15: 12 | O15: 1 | P15: =SUM(Q15+R15) -> 0 | S15: 1 | T15: 1 | V15: 0
A16: 1.3 | B16: ДИСЦИПЛИНЫ по научной специальности: Математическое и программное обеспечение вычислительных систем, комплексов и компьютерных сетей | C16: 2 | D16: 3 | G16: =O16*36 -> 468 | H16: =SUM(H17:H21) -> 468 | I16: 68 | J16: 20 | L16: 48 | M16: 328 | N16: 72 | O16: 13 | P16: =Q16+R16 -> 6 | Q16: 2 | R16: 4 | S16: 7 | T16: =SUM(T17:T21) -> 4 | U16: =SUM(U17:U21) -> 3 | V16: 0 | W16: =SUM(W17:W21) -> 0 | X16: =SUM(X17:X21) -> 0
A17: 1.3.1 | B17: Математические основы программирования | D17: 1 | G17: 72 | H17: =I17+M17 -> 72 | I17: 14 | J17: 4 | L17: 10 | M17: 58 | O17: 2 | P17: =SUM(Q17:R17) -> 2 | Q17: 2 | S17: =SUM(T17:U17) -> 0 | V17: =SUM(W17:X17) -> 0
A18: 1.3.2 | B18: Вычислительные машины, системы и сети | D18: 2 | G18: 72 | H18: =I18+M18 -> 72 | I18: 12 | J18: 4 | L18: 8 | M18: 60 | O18: 2 | P18: =SUM(Q18:R18) -> 2 | R18: 2
A19: 1.3.3 | B19: Операционные системы | C19: 2 | G19: 72 | H19: =I19+M19+N19 -> 72 | I19: 14 | J19: 4 | L19: 10 | M19: 22 | N19: 36 | O19: 2 | P19: =SUM(Q19:R19) -> 2 | R19: 2
A20: 1.3.4 | B20: Параллельные вычисления | D20: 5 | G20: 108 | H20: =I20+M20+N20 -> 108 | I20: 14 | J20: 4 | L20: 10 | M20: 94 | O20: 3 | P20: =SUM(Q20:R20) -> 0 | S20: =SUM(T20:U20) -> 3 | U20: 3
A21: 1.3.5 | B21: Технологии разработки программного обеспечения | C21: 3 | G21: 144 | H21: =I21+M21+N21 -> 144 | I21: 14 | J21: 4 | L21: 10 | M21: 94 | N21: 36 | O21: 4 | P21: =SUM(Q21:R21) -> 0 | S21: 4 | T21: 4
A22: 1.4 | B22: Практика | E22: 4 | G22: 108 | H22: 108 | M22: 90 | O22: 3 | S22: =T22+U22 -> 3 | U22: 3
A23: 2 | B23: Научный коммпонент | G23: 5220 | H23: =H24+H25 -> 5220 | I23: =50*3 -> 150 | M23: =G23-I23 -> 5070 | O23: 145.0 | P23: =Q23+R23 -> 42.0 | Q23: =Q24+Q25 -> 19.5 | R23: =R24+R25 -> 22.5 | S23: =T23+U23 -> 48.0 | T23: =T24+T25 -> 19.0 | U23: =U24+U25 -> 29.0 | V23: =V24+V25 -> 55.0 | W23: =W24+W25 -> 25.5 | X23: =X24+X25 -> 29.5
A24: 2.1 | B24: Научно-исследовательская работа аспиранта, направленная на подготовку диссертациии на соискание ученой степени кандидата наук к защите | E24: 1-6 | G24: 4860 | H24: =M24+I24 -> 4860 | I24: =I23 -> 150 | M24: =M23-M25 -> 4710 | O24: 135.0 | P24: =Q24+R24 -> 39.0 | Q24: 18.5 | R24: 20.5 | S24: =T24+U24 -> 44.0 | T24: 17.0 | U24: 27.0 | V24: =W24+X24 -> 52.0 | W24: 23.5 | X24: 28.5
A25: 2.2 | B25: Подготовка публикаций и (или) заявок на патенты на изобретения | E25: 2-6 | G25: 360 | H25: =G25 -> 360 | M25: =O25*36 -> 360 | O25: 10.0 | P25: =Q25+R25 -> 3.0 | Q25: 1.0 | R25: 2.0 | S25: =T25+U25 -> 4.0 | T25: 2.0 | U25: 2.0 | V25: =W25+X25 -> 3.0 | W25: 2.0 | X25: 1.0
A26: 3 | B26: Итоговая аттестация | D26: 6 | G26: 180 | H26: =O26*36 -> 180 | M26: =O26*36 -> 180 | O26: 5 | V26: 5.0 | X26: 5.0
B27: Итого | G27: =O27*36 -> 6480 | H27: =H26+H23+H7 -> 6480 | M27: =M26+M23+M7 -> 5250 | O27: =O7+O23+O26 -> 180 | P27: =P23+P7 -> 60 | S27: =S7+S23+S26 -> 60 | V27: =V7+V23+V26 -> 60

Sheet План
B1: План подготовки аспирантов
A2: Индекс | B2: Наименование | E2: Формы контроля | I2: Всего часов | P2: ЗЕТ | T2: Распределение по курсам и семестрам | AG2: Распределение по курсам и семестрам
I3: По ЗЕТ | J3: По плану | K3: в том числе | P3: Факт | Q3: Курс 1 | AD3: Курс 2 | AQ3: Курс 3
E4: Экзамены | F4: Зачеты | G4: Зачеты с оценкой | H4: Рефераты | K4: Контакт. раб. (по учеб. зан.) | L4: из них | N4: СРС | O4: Контроль | Q4: Всего | T4: Семестр 1 [12 нед] | Y4: Семестр 2 [21 нед] | AD4: Всего | AG4: Семестр 3 [8 нед] | AL4: Семестр 4 [23 нед] | AQ4: Всего | AT4: Семестр 5 [15 нед] | AX4: Семестр 6 [23 нед]
L5: Лек | M5: Сем | T5: Лек | U5: Сем | V5: СРС | W5: Контроль | X5: ЗЕТ | Y5: Лек | Z5: Сем | AA5: СРС | AB5: Контроль | AC5: ЗЕТ | AG5: Лек | AH5: Сем | AI5: СРС | AJ5: Контроль | AK5: ЗЕТ | AL5: Лек | AM5: Сем | AN5: СРС | AO5: Контроль | AP5: ЗЕТ | AT5: Лек | AU5: Сем | AV5: СРС | AW5: ЗЕТ | AX5: Лек | AY5: Сем | AZ5: СРС | BA5: ЗЕТ
Q6: Часов | R6: Ауд | S6: ЗЕТ | AD6: Часов | AE6: Ауд | AF6: ЗЕТ | AQ6: Часов | AR6: Ауд | AS6: ЗЕТ
B8: Итого на подготовку аспиранта | E8: 5 | F8: 7 | G8: 3 | I8: =P8*36 -> 6480 | J8: =J9+J28+J31 -> 6480 | K8: =K9+K28 -> 336 | N8: =N9+N26+N28 -> 5824 | P8: =P9+P28+P31 -> 180 | Q8: =S8*36 -> 2,160 | S8: =X8+AC8 -> 60 | X8: =X9+X28 -> 25.5 | AC8: =AC9+AC28 -> 34.5 | AD8: =AF8*36 -> 2160 | AF8: =AK8+AP8 -> 60 | AK8: =AK9+AK28 -> 25.0 | AP8: =AP9+AP28 -> 35.0 | AQ8: =AS8*36 -> 2160 | AS8: =AW8+BA8 -> 60 | AW8: 25.5 | BA8: =BA9+BA28+BA31 -> 34.5
A9: 1 | B9: Образовательный компонент | E9: 4 | F9: 6 | G9: 1 | I9: 1080 | J9: =J10+J13+J18+J26 -> 1080 | K9: 186 | L9: 38 | M9: 112 | N9: 664 | O9: 120 | P9: 30 | Q9: =Q10+Q13+Q18+Q26 -> 648 | R9: 122 | S9: 12 | T9: 10 | U9: 38 | V9: 168 | W9: 0 | X9: 6 | Y9: =SUM(Y26+Y18+Y13+Y10) -> 18 | Z9: =SUM(Z26+Z18+Z13+Z10) -> 56 | AA9: =SUM(AA26+AA18+AA13+AA10) -> 286 | AB9: =SUM(AB26+AB18+AB13+AB10) -> 72 | AC9: =SUM(AC26+AC18+AC13+AC10) -> 12 | AD9: =AD10+AD13+AD18+AD26 -> 432 | AE9: 64 | AF9: 12 | AG9: 32 | AH9: 18 | AI9: 118 | AJ9: 48 | AK9: 6 | AL9: 112 | AM9: 10 | AN9: 184 | AO9: 0 | AP9: 6
A10: 1.1 | B10: Дисциплины/модули (Базовая часть) | E10: 2 | I10: =P10*36 -> 324 | J10: =SUM(J11:J12) -> 324 | K10: 56 | L10: 2 | M10: 38 | N10: 140 | O10: 36 | P10: 9 | Q10: 324 | R10: 56 | S10: 9 | T10: 2 | U10: 18 | V10: 52 | W10: 0 | X10: 2 | Y10: 6 | Z10: 30 | AA10: 180 | AB10: 36 | AC10: 7 | AD10: 0 | AE10: 0 | AF10: 0
A11: 1.1.1 | B11: Иностранный язык | E11: 1 | I11: 180 | J11: =K11+N11+O11 -> 180 | K11: =M11+L11 -> 40 | L11: =T11+Y11 -> 2 | M11: =U11+Z11 -> 38 | N11: =V11+AA11 -> 140 | P11: =S11+AF11+AS11 -> 5 | Q11: 180 | R11: =T11+U11+Y11+Z11 -> 40 | S11: =X11+AC11 -> 5 | T11: 2 | U11: 18 | V11: 52 | W11: 0 | X11: 2 | Y11: 0 | Z11: 20 | AA11: 88 | AC11: 3
A12: 1.1.2 | B12: История и философия науки | E12: 2 | I12: 144 | J12: =K12+N12+O12 -> 144 | K12: =M12+L12 -> 16 | L12: 6 | M12: 10 | N12: 92 | O12: 36 | P12: =S12+AF12+AS12 -> 4 | Q12: 144 | R12: 16 | S12: =X12+AC12 -> 4 | T12: 0 | Y12: 6 | Z12: 10 | AA12: 92 | AB12: 36 | AC12: 4
A13: 1.2. | B13: ДИСЦИПЛИНЫ ОБЩИЕ | E13: 1 | F13: 3 | I13: =P13*36 -> 180 | J13: =SUM(J14:J17) -> 180 | K13: =SUM(K14:K17) -> 62 | L13: 36 | M13: 26 | N13: 106 | O13: 12 | P13: 5 | Q13: 108 | R13: 26 | S13: 3 | T13: 4 | U13: 10 | V13: 58 | X13: 2 | Y13: =SUM(Y14:Y17) -> 4 | Z13: =SUM(Z14:Z17) -> 8 | AA13: =SUM(AA14:AA17) -> 24 | AB13: =SUM(AB14:AB17) -> 0 | AC13: =SUM(AC14:AC17) -> 1 | AD13: =SUM(AD15:AD17) -> 72 | AE13: =SUM(AE15:AE17) -> 36 | AF13: 2 | AG13: 28 | AH13: 8 | AI13: 24 | AJ13: 12 | AK13: 2
A14: 1.2.1 | B14: Методология научных исследований | F14: 1 | I14: =P14*36 -> 72 | J14: =N14+K14+O14 -> 72 | K14: =L14+M14 -> 14 | L14: =T14+Y14+AG14+AL14+AT14 -> 4 | M14: 10 | N14: =V14+AA14 -> 58 | P14: =S14+AF14+AS14 -> 2 | Q14: =S14*36 -> 72 | R14: 14 | S14: =X14+AC14 -> 2 | T14: 4 | U14: 10 | V14: 58 | X14: 2
A15: 1.2.2 | B15: Методика написания и правила оформления научной работы | F15: 2 | I15: =P15*36 -> 36 | J15: =N15+K15+O15 -> 36 | K15: =L15+M15 -> 12 | L15: 4 | M15: 8 | N15: =V15+AA15+AI15+AN15+AV15+AZ15 -> 24 | P15: =S15+AF15+AS15 -> 1 | Q15: =S15*36 -> 36 | R15: 12 | S15: =X15+AC15 -> 1 | Y15: 4 | Z15: 8 | AA15: 24 | AC15: 1
A16: 1,2,3 | B16: Психология и педагогика профессиональной деятельности | F16: 3 | I16: =P16*36 -> 36 | J16: =N16+K16+O16 -> 36 | K16: =L16+M16 -> 12 | L16: 4 | M16: 8 | N16: =V16+AA16+AI16+AN16+AV16+AZ16 -> 24 | P16: =S16+AF16+AS16 -> 1 | Q16: =S16*36 -> 0 | S16: =X16+AC16 -> 0 | AD16: =AF16*36 -> 36 | AE16: =AG16+AH16 -> 12 | AF16: =AK16+AP16+AP16 -> 1 | AG16: 4 | AH16: 8 | AI16: 24 | AK16: 1
A17: 1.2.4 | B17: Искусственный интеллект в научных исследованиях. | E17: 3 | I17: =P17*36 -> 36 | J17: =N17+K17+O17 -> 36 | K17: =L17+M17 -> 24 | L17: 24 | M17: 0 | N17: =V17+AA17+AI17+AN17+AV17+AZ17 -> 0 | O17: =W17+AB17+AJ17+AO17 -> 12 | P17: =S17+AF17+AS17 -> 1 | Q17: =S17*36 -> 0 | S17: =X17+AC17 -> 0 | AD17: =AF17*36 -> 36 | AE17: =AG17+AH17 -> 24 | AF17: =AK17+AP17+AP17 -> 1 | AG17: 24 | AH17: 0 | AI17: 0 | AJ17: 12 | AK17: 1
A18: 1.3. | B18: ДИСЦИПЛИНЫ специальности: Математическое моделирование, численные методы и комплексы программ | E18: =SUM(E19:E23) -> 5 | F18: 3 | I18: =SUM(I19:I23) -> 468 | J18: =SUM(J19:J23) -> 468 | K18: 68 | L18: 0 | M18: 48 | N18: 328 | O18: 72 | P18: =SUM(P19:P23) -> 13 | Q18: =SUM(Q19:Q23) -> 216 | R18: =SUM(R19:R23) -> 40 | S18: =SUM(S19:S23) -> 0 | T18: =SUM(T19:T23) -> 4 | U18: 10 | V18: 58 | W18: 0 | X18: 2 | Y18: =SUM(Y19:Y23) -> 8 | Z18: 18 | AA18: 82 | AB18: 36 | AC18: 4 | AD18: =SUM(AD19:AD23) -> 252 | AE18: =SUM(AE19:AE23) -> 28 | AF18: =SUM(AF19:AF23) -> 7 | AG18: 4 | AH18: 10 | AI18: 94 | AJ18: 36 | AK18: 4 | AL18: =SUM(AL19:AL23) -> 4 | AM18: =SUM(AM19:AM23) -> 10 | AN18: =SUM(AN19:AN23) -> 94 | AO18: =SUM(AO19:AO23) -> 0 | AP18: =SUM(AP19:AP23) -> 3
A19: 1.3.1 | B19: Математические основы программирования | F19: 1 | I19: =P19*36 -> 72 | J19: =Q19+AD19+AQ19 -> 72 | K19: 14 | L19: 4 | M19: 10 | N19: 58 | P19: =S19+AF19+AS19 -> 2 | Q19: =T19+U19+V19+W19+Y19+Z19+AA19+AB19 -> 72 | R19: =T19+U19 -> 14 | S19: 2 | T19: 4 | U19: 10 | V19: 58 | X19: 2 | AD19: =AK19*36 -> 0 | AF19: =AK19+AP19 -> 0
A20: 1.3.2 | B20: Вычислительные машины, системы и сети | F20: 2 | I20: =P20*36 -> 72 | J20: 72 | K20: 12 | L20: 4 | M20: 8 | N20: 60 | P20: =S20+AF20+AS20 -> 2 | Q20: =T20+U20+V20+W20+Y20+Z20+AA20+AB20 -> 72 | R20: =Y20+Z20 -> 12 | S20: 2 | T20: =+U20 -> 0 | Y20: 4 | Z20: 8 | AA20: 60 | AC20: 2 | AD20: =AK20*36 -> 0 | AF20: =AK20+AP20 -> 0
A21: 1.3.3 | B21: Операционные системы | E21: 2 | I21: =P21*36 -> 72 | J21: 72 | K21: 14 | L21: 4 | M21: 10 | N21: 22 | O21: 36 | P21: =S21+AF21+AS21 -> 2 | Q21: =T21+U21+V21+W21+Y21+Z21+AA21+AB21 -> 72 | R21: =Y21+Z21 -> 14 | S21: 2 | Y21: 4 | Z21: 10 | AA21: 22 | AB21: 36 | AC21: 2 | AD21: =AK21*36 -> 0 | AF21: =AK21+AP21 -> 0
A22: 1.3.4 | B22: Параллельные вычисления | F22: 5 | I22: =P22*36 -> 108 | J22: 108 | K22: 14 | L22: 4 | M22: 10 | N22: 94 | P22: =S22+AF22+AS22 -> 3 | Q22: =T22+U22+V22+W22+Y22+Z22+AA22+AB22 -> 0 | R22: =Y22+Z22 -> 0 | AD22: =AF22*36 -> 108 | AE22: =AG22+AH22+AL22+AM22 -> 14 | AF22: =AK22+AP22 -> 3 | AL22: 4 | AM22: 10 | AN22: 94 | AP22: 3 | AQ22: =AS22*36 -> 0
A23: 1.3.5 | B23: Технологии разработки программного обеспечения | E23: 3 | I23: =P23*36 -> 144 | J23: 144 | K23: 14 | L23: 4 | M23: 10 | N23: 94 | O23: 36 | P23: =S23+AF23+AS23 -> 4 | Q23: =T23+U23+V23+W23+Y23+Z23+AA23+AB23 -> 0 | R23: =Y23+Z23 -> 0 | AD23: =AF23*36 -> 144 | AE23: =AG23+AH23+AL23+AM23 -> 14 | AF23: =AK23+AP23 -> 4 | AG23: 4 | AH23: 10 | AI23: 94 | AJ23: 36 | AK23: 4
B24: Наименование | I24: Всего часов | Q24: Всего | T24: Семестр 1 | Y24: Семестр 2 | AD24: Всего | AG24: Семестр 3 | AL24: Семестр 4 | AQ24: Всего | AT24: Семестр 5 | AX24: Семестр 6
I25: По ЗЕТ | J25: По плану | K25: Контакт.р. | N25: СР | O25: ЗЕТ | P25: Факт | Q25: Часов | S25: ЗЕТ | T25: часов | V25: СРС | X25: ЗЕТ | Y25: часов | AA25: СРС | AC25: ЗЕТ | AD25: Часов | AF25: ЗЕТ | AG25: часов | AI25: СРС | AK25: ЗЕТ | AL25: часов | AN25: СРС | AP25: ЗЕТ | AQ25: часов | AS25: ЗЕТ | AT25: часов | AV25: СРС | AW25: ЗЕТ | AX25: часов | AZ25: СРС | BA25: ЗЕТ
A26: 1.4 | B26: Практики | G26: =G27 -> 4 | I26: =I27 -> 108 | J26: =Q26+AD26+AQ26 -> 108 | N26: =N27 -> 90 | P26: =S26+AF26+AS26 -> 3 | S26: =X26+AC26 -> 0 | X26: =X27 -> 0 | AC26: =AC27 -> 0 | AD26: =AD27 -> 108 | AF26: =AK26+AP26 -> 3 | AL26: =AP26*36 -> 108 | AN26: =AN27 -> 90 | AP26: =AP27 -> 3 | AS26: =AW26+BA26 -> 0
A27: 1.4.1 | B27: Научно-педагогическая практика | G27: 4 | I27: =P27*36 -> 108 | J27: =P27*36 -> 108 | N27: =V27+AA27+AI27+AN27+AV27+AZ27 -> 90 | P27: =S27+AF27+AS27 -> 3 | V27: 0 | AA27: 0 | AD27: =AF27*36 -> 108 | AF27: =AK27+AP27 -> 3 | AI27: 0 | AL27: =AP27*36 -> 108 | AN27: 90 | AP27: 3 | AS27: =AW27+BA27 -> 0 | AV27: 0 | AZ27: 0
A28: 2 | B28: Научные исследования | I28: =P28*36 -> 5220 | J28: =J29+J30 -> 5220 | K28: =50*3 -> 150 | N28: =V28+AA28+AI28+AN28+AV28+AZ28 -> 5070 | P28: =S28+AF28+AS28 -> 145 | Q28: 1512 | S28: =X28+AC28 -> 42.0 | T28: =SUM(T29:T30) -> 702 | V28: =T28-20 -> 682 | X28: =SUM(X29:X30) -> 19.5 | Y28: =AC28*36 -> 810 | AA28: =Y28-30 -> 780 | AB28: 0 | AC28: =AC29+AC30 -> 22.5 | AD28: =AF28*36 -> 1728 | AF28: =AK28+AP28 -> 48 | AG28: =AK28*36 -> 684 | AI28: =AG28-20 -> 664 | AK28: =AK29+AK30 -> 19.0 | AL28: =AP28*36 -> 1044 | AN28: =AL28-30 -> 1014 | AP28: =SUM(AP29:AP30) -> 29.0 | AQ28: =AS28*36 -> 1980 | AS28: =AW28+BA28 -> 55.0 | AT28: =AW28*36 -> 918 | AV28: =AT28-20 -> 898 | AW28: =AW29+AW30 -> 25.5 | AX28: =BA28*36 -> 1062 | AZ28: =AX28-30 -> 1032 | BA28: =BA29+BA30 -> 29.5
A29: 2.1 | B29: Научно-исследовательская работа аспиранта, направленная на подготовку диссертациии на соискание ученой степени кандидата наук к защите | G29: 1-6 | I29: =P29*36 -> 4860 | J29: =I29 -> 4860 | N29: =P29*36 -> 4860 | P29: =S29+AF29+AS29 -> 135 | Q29: 1080 | S29: =X29+AC29 -> 39 | T29: =X29*36 -> 666 | X29: 18.5 | Y29: =AC29*36 -> 738 | AC29: 20.5 | AD29: =AF29*36 -> 1584 | AF29: =AK29+AP29 -> 44 | AG29: =AK29*36 -> 612 | AI29: =AK29*36 -> 612 | AK29: 17 | AL29: =AP29*36 -> 972 | AN29: =AL29-30 -> 942 | AP29: 27 | AQ29: =AS29*36 -> 1872 | AS29: =AW29+BA29 -> 52 | AT29: =AW29*36 -> 846 | AV29: =AT29-20 -> 826 | AW29: 23.5 | AX29: =BA29*36 -> 1026 | AZ29: =AX29-30 -> 996 | BA29: 29
A30: 2.2 | B30: Подготовка публикаций и (или) заявок на патенты на изобретения | G30: 1-6 | I30: =P30*36 -> 360 | J30: =I30 -> 360 | N30: =P30*36 -> 360 | P30: =S30+AF30+AS30 -> 10 | Q30: 432 | S30: =X30+AC30 -> 3 | T30: =X30*36 -> 36 | X30: 1.0 | Y30: =AC30*36 -> 72 | AC30: 2.0 | AD30: =AF30*36 -> 144 | AF30: =AK30+AP30 -> 4 | AG30: =AK30*36 -> 72 | AI30: =AK30*36 -> 72 | AK30: 2 | AL30: =AP30*36 -> 72 | AN30: =AL30 -> 72 | AP30: 2 | AQ30: =AS30*36 -> 108 | AS30: =AW30+BA30 -> 3 | AT30: =AW30*36 -> 72 | AU30: =AV30 -> 0 | AW30: 2 | AX30: =BA30*36 -> 36 | AZ30: =AX30 -> 36 | BA30: 1
A31: 3 | B31: Итоговая аттестация | I31: =J31 -> 180 | J31: =P31*36 -> 180 | N31: =P31*36 -> 180 | P31: 5 | AX31: =BA31*36 -> 180 | BA31: 5

Sheet Start (hidden)
